bitfinex-derivatives/quotes_BNBF0:USTF0_20241225
["timestamp","ask_amount","ask_price","bid_price","bid_amount"]
[1735127231377,0.26033004,707.54,705.49,0.2834909]
[1735127231580,0.26033004,707.53,705.49,0.2834909]
[1735127231878,0.26033004,707.52,705.49,0.2834909]
[1735127232076,0.26033004,707.51,705.49,0.2834909]
[1735127232279,0.26033004,707.5,705.49,0.2834909]
[1735127232481,0.26033004,707.49,705.49,0.2834909]
[1735127232779,0.26033004,707.48,705.49,0.2834909]
[1735127232980,0.26033004,707.55,705.49,0.2834909]
[1735127233186,0.26033004,707.54,705.49,0.2834909]
[1735127233498,0.26033004,707.53,705.49,0.2834909]
[1735127233680,0.26033004,707.52,705.49,0.2834909]
[1735127233878,0.26033004,707.51,705.49,0.2834909]
[1735127234075,0.26033004,707.5,705.49,0.2787969]
[1735127234375,0.26033004,707.49,705.49,0.2787969]
[1735127234574,0.26033004,707.48,705.49,0.2787969]
[1735127234773,0.26033004,707.47,705.49,0.2787969]
[1735127234977,0.26033004,707.46,705.49,0.2787969]
[1735127235179,0.26033004,707.45,705.49,0.2787969]
[1735127235380,0.26033004,707.44,705.49,0.2787969]
[1735127235679,0.26028191,707.43,705.49,0.2787969]
[1735127235880,0.26028191,707.42,705.49,0.2787969]
[1735127236079,0.26028191,707.41,705.49,0.2787969]
[1735127236275,0.26028191,707.4,705.49,0.2787969]
[1735127236477,0.26028191,707.39,705.49,0.2787969]
[1735127236681,0.26028191,707.38,705.49,0.2787969]
[1735127236875,0.26028191,707.37,705.49,0.2787969]
[1735127237076,0.26028191,707.36,705.49,0.2787969]
[1735127237280,0.26028191,707.35,705.49,0.2787969]
[1735127237480,0.26028191,707.34,705.49,0.2787969]
[1735127237783,0.26028191,707.33,705.49,0.2787969]
[1735127238081,0.26028191,707.32,705.49,0.2787969]
[1735127238276,0.26028191,707.55,705.49,0.2787969]
[1735127238477,0.26028191,707.54,705.49,0.2787969]
[1735127238675,0.26028191,707.55,705.49,0.2787969]
[1735127238879,0.26028191,707.54,705.49,0.2787969]
[1735127239081,0.26027201,707.53,705.49,0.2787969]
[1735127239382,0.26027201,707.52,705.49,0.2787969]
[1735127239584,0.26027201,707.55,705.49,0.2787969]
[1735127239778,0.26027201,707.54,705.49,0.2787969]
[1735127239983,0.26027201,707.53,705.49,0.2787969]
[1735127240178,0.26027201,707.52,705.49,0.2787969]
[1735127240482,0.26027201,707.51,705.49,0.2787969]
[1735127240682,0.26027201,707.5,705.49,0.2787969]
[1735127240878,0.26027201,707.49,705.49,0.2787969]
[1735127241077,0.26028237,707.48,705.51,1.05227668]
[1735127241278,0.774,707.56,705.51,1.05227668]
[1735127241279,0.26028237,707.47,705.51,1.05227668]
[1735127241479,0.26028237,707.46,705.51,1.05227668]
[1735127241680,0.26028237,707.45,705.51,1.05227668]
[1735127241878,0.26028237,707.44,705.51,1.05227668]
[1735127242081,0.26028237,707.43,705.51,1.05227668]
[1735127242383,0.26028237,707.42,705.51,1.05227668]
[1735127242583,0.26028237,707.55,705.51,1.05227668]
[1735127242884,0.26028237,707.54,705.51,1.05227668]
[1735127243079,0.26028237,707.53,705.51,1.05227668]
[1735127243280,0.26028237,707.52,705.51,1.05227668]
[1735127243482,0.26028237,707.52,705.49,0.2787969]
[1735127243483,0.26028237,707.51,705.49,0.2787969]
[1735127243780,0.26033197,707.5,705.49,0.2787969]
[1735127243986,0.26033197,707.49,705.49,0.2787969]
[1735127244191,0.26033197,707.48,705.49,0.2787969]
[1735127244387,1.04135786,707.43,705.49,0.2787969]
[1735127244586,0.26033197,707.42,705.49,0.2787969]
[1735127244787,0.26033197,707.41,705.49,0.2787969]
[1735127244982,0.26033197,707.4,705.49,0.2787969]
[1735127245180,0.26033197,707.39,705.49,0.2787969]
[1735127245383,0.26033197,707.38,705.49,0.2787969]
[1735127245580,0.26033197,707.37,705.49,0.2787969]
[1735127245788,0.26033197,707.36,705.49,0.2787969]
[1735127245986,0.26033197,707.35,705.49,0.2787969]
[1735127246185,0.26033197,707.34,705.49,0.2787969]
[1735127246383,0.26032977,707.33,705.49,0.2787969]
[1735127246580,0.26032977,707.32,705.49,0.2787969]
[1735127246785,0.26032977,707.31,705.49,0.2787969]
[1735127246986,0.26032977,707.3,705.49,0.2787969]
[1735127247287,0.26032889,707.29,705.49,0.2787969]
[1735127247487,0.26032889,707.28,705.49,0.2787969]
[1735127247688,1.40671792,707.56,705.49,0.2787969]
[1735127247689,0.26032889,707.27,705.52,1.05227668]
[1735127247890,0.26032889,707.26,705.52,1.05227668]
[1735127248187,1.04135786,707.37,705.52,1.05227668]
[1735127248188,0.26032889,707.25,705.52,1.05227668]
[1735127248388,0.26032889,707.24,705.59,1.05227668]
[1735127248690,0.26032889,707.23,705.59,1.05227668]
[1735127248991,0.26032889,707.22,705.59,1.05227668]
[1735127249189,0.26028197,707.21,705.59,1.05227668]
[1735127249388,0.26028197,707.46,705.59,1.05227668]
[1735127249585,1.04135786,707.44,705.66,1.05227668]
[1735127249786,0.26028197,707.43,705.66,1.05227668]
[1735127250988,0.26028197,707.43,705.68,1.05227668]
[1735127251188,0.26028197,707.42,705.68,1.05227668]
[1735127251387,0.26028197,707.41,705.68,1.05227668]
[1735127251587,0.26028197,707.4,705.68,1.05227668]
[1735127251788,0.26028109,707.39,705.68,1.05227668]
[1735127251984,0.26028109,707.39,705.49,0.2787969]
[1735127251985,0.26028109,707.38,705.59,1.05227668]
[1735127252190,0.26028109,707.37,705.59,1.05227668]
[1735127252493,0.26028109,707.36,705.59,1.05227668]
[1735127252686,0.26028109,707.35,705.59,1.05227668]
[1735127252889,0.26028109,707.34,705.59,1.05227668]
[1735127253090,0.774,707.56,705.49,0.2787969]
[1735127253091,0.26028109,707.33,705.61,1.05227668]
[1735127253291,0.26028109,707.32,705.61,1.05227668]
[1735127253491,0.26028109,707.31,705.61,1.05227668]
[1735127253684,0.774,707.56,705.61,1.05227668]
[1735127253685,0.26028109,707.3,705.61,1.05227668]
[1735127253889,0.26028109,707.29,705.59,1.05227668]
[1735127254087,0.26028109,707.28,705.59,1.05227668]
[1735127254290,0.26028109,707.27,705.59,1.05227668]
[1735127254494,0.26027565,707.26,705.59,1.05227668]
[1735127254692,0.26027565,707.25,705.59,1.05227668]
[1735127254994,0.26027565,707.24,705.61,1.05227668]
[1735127255188,0.774,707.56,705.61,1.05227668]
[1735127256093,0.26024756,707.55,705.61,1.05227668]
[1735127256787,0.26024756,707.55,705.49,0.2787969]
[1735127256788,0.26024756,707.55,705.8,1.05227668]
[1735127257187,0.774,707.56,705.8,1.05227668]
[1735127257387,0.26021602,707.55,705.8,1.05227668]
[1735127258192,0.26021602,707.55,705.92,1.05227668]
[1735127258995,0.26021602,707.55,705.5,0.77440619]
[1735127258996,0.26021602,707.55,705.9,1.05227668]
[1735127259896,0.26021241,707.54,705.88,1.05227668]
[1735127260098,0.26021241,707.53,705.88,1.05227668]
[1735127260396,0.26021241,707.52,705.88,1.05227668]
[1735127260597,0.26021241,707.51,705.88,1.05227668]
[1735127260790,0.26021241,707.5,705.88,1.05227668]
[1735127260994,0.26021241,707.49,705.88,1.05227668]
[1735127261292,0.26021241,707.49,705.91,1.05227668]
[1735127262496,0.59,707.5,705.91,1.05227668]
[1735127262695,0.26019101,707.49,705.91,1.05227668]
[1735127262994,0.26019101,707.49,705.89,1.05227668]
[1735127264197,0.26019101,707.49,705.85,1.05227668]
[1735127265698,0.26019101,707.49,705.59,1.05227668]
[1735127266902,0.26019101,707.49,705.74,1.05227668]
[1735127268104,0.26022499,707.48,705.81,1.05227668]
[1735127268301,0.26022499,707.49,705.81,1.05227668]
[1735127268605,0.26022499,707.48,705.81,1.05227668]
[1735127268800,0.26022499,707.47,705.81,1.05227668]
[1735127268997,0.26022499,707.46,705.81,1.05227668]
[1735127269199,0.26022499,707.45,705.8,1.05227668]
[1735127269399,0.26022499,707.44,705.8,1.05227668]
[1735127269704,0.26022499,707.43,705.8,1.05227668]
[1735127269904,0.26022499,707.42,705.8,1.05227668]
[1735127270105,0.26022499,707.41,705.8,1.05227668]
[1735127270306,0.26022499,707.4,705.76,1.05227668]
[1735127270504,0.26022499,707.39,705.76,1.05227668]
[1735127270700,0.26026339,707.38,705.76,1.05227668]
[1735127270905,0.59,707.5,705.76,1.05227668]
[1735127270906,0.26026339,707.37,705.76,1.05227668]
[1735127271205,0.26026339,707.36,705.76,1.05227668]
[1735127271409,0.59,707.5,705.71,1.05227668]
[1735127271410,0.26026339,707.35,705.71,1.05227668]
[1735127271706,0.26026339,707.34,705.71,1.05227668]
[1735127271905,0.26026339,707.33,705.71,1.05227668]
[1735127272101,0.26026339,707.32,705.71,1.05227668]
[1735127272305,0.26026339,707.31,705.71,1.05227668]
[1735127272601,0.26026339,707.3,705.72,1.05227668]
[1735127272805,0.26026339,707.29,705.72,1.05227668]
[1735127273007,0.26026339,707.28,705.72,1.05227668]
[1735127273206,0.26026339,707.27,705.72,1.05227668]
[1735127273505,0.26027814,707.26,705.72,1.05227668]
[1735127273709,0.26027814,707.25,705.72,1.05227668]
[1735127274007,0.26027814,707.24,705.75,1.05227668]
[1735127274209,0.26027814,707.23,705.75,1.05227668]
[1735127274405,0.26027814,707.22,705.75,1.05227668]
[1735127274604,0.26027814,707.21,705.75,1.05227668]
[1735127274810,0.768,707.24,705.75,1.05227668]
[1735127274811,0.26027814,707.2,705.75,1.05227668]
[1735127275001,0.26027814,707.19,705.75,1.05227668]
[1735127275202,0.26027814,707.18,705.75,1.05227668]
[1735127275404,0.26027814,707.17,705.73,1.05227668]
[1735127275608,0.26027814,707.16,705.73,1.05227668]
[1735127275805,0.26027814,707.15,705.73,1.05227668]
[1735127276105,0.26027517,707.14,705.73,1.05227668]
[1735127276309,0.26027517,707.13,705.73,1.05227668]
[1735127276506,0.26027517,707.12,705.73,1.05227668]
[1735127276707,0.26027517,707.11,705.73,1.05227668]
[1735127276905,0.26027517,707.1,705.73,1.05227668]
[1735127277212,0.768,707.24,705.73,1.05227668]
[1735127277509,0.26027184,707.23,705.73,1.05227668]
[1735127277710,0.26027184,707.23,705.74,1.05227668]
[1735127278913,0.768,707.24,705.7,1.05227668]
[1735127278914,0.2602725,707.22,705.7,1.05227668]
[1735127279213,0.2602725,707.21,705.7,1.05227668]
[1735127279408,0.2602725,707.2,705.7,1.05227668]
[1735127279607,0.768,707.24,705.7,1.05227668]
[1735127279804,0.26027494,707.23,705.7,1.05227668]
[1735127280012,0.26027494,707.23,705.74,1.05227668]
[1735127281005,0.26027494,707.23,705.49,0.2787969]
[1735127281006,0.26027494,707.23,705.77,1.05227668]
[1735127281206,0.26027951,707.22,705.77,1.05227668]
[1735127281413,0.26027951,707.21,705.77,1.05227668]
[1735127281611,0.26027951,707.2,705.77,1.05227668]
[1735127281809,0.26027951,707.19,705.77,1.05227668]
[1735127282004,0.768,707.24,705.77,1.05227668]
[1735127282005,0.26027951,707.18,705.77,1.05227668]
[1735127282210,0.26027951,707.17,705.71,1.05227668]
[1735127282410,0.26027951,707.16,705.71,1.05227668]
[1735127282606,0.26027951,707.15,705.71,1.05227668]
[1735127282809,0.26027951,707.14,705.71,1.05227668]
[1735127283005,0.26027951,707.13,705.71,1.05227668]
[1735127283208,0.26027951,707.12,706.0,1.05227668]
[1735127283411,0.768,707.24,706.0,1.05227668]
[1735127283612,0.2602146,707.23,706.0,1.05227668]
[1735127284017,0.2602146,707.23,706.01,1.05227668]
[1735127284913,0.768,707.24,706.01,1.05227668]
[1735127285109,0.768,707.24,705.91,1.05227668]
[1735127286217,0.768,707.24,705.88,1.05227668]
[1735127287112,0.768,707.24,706.04,1.05227668]
[1735127288218,0.768,707.24,706.03,1.05227668]
[1735127289021,0.768,707.24,706.01,1.05227668]
[1735127289916,0.768,707.24,705.59,1.05227668]
[1735127289917,0.768,707.24,705.99,1.05227668]
[1735127291222,0.768,707.24,706.02,1.05227668]
[1735127291919,0.768,707.24,706.08,1.05227668]
[1735127292123,0.26012885,707.23,706.08,1.05227668]
[1735127292324,0.768,707.24,706.08,1.05227668]
[1735127293223,0.768,707.24,706.07,1.05227668]
[1735127293823,0.768,707.24,706.04,1.05227668]
[1735127295021,0.768,707.24,706.02,1.05227668]
[1735127296026,0.768,707.24,705.81,1.05227668]
[1735127296727,0.768,707.24,705.78,1.05227668]
[1735127297825,0.26016534,707.23,705.84,1.05227668]
[1735127298024,1.04135786,708.0,705.84,1.05227668]
[1735127298329,0.26016049,707.74,705.84,1.05227668]
[1735127298527,0.26016049,707.73,705.84,1.05227668]
[1735127298825,0.26016049,707.72,705.84,1.05227668]
[1735127299028,0.26016049,707.71,705.9,1.05227668]
[1735127299229,0.26016049,707.7,705.9,1.05227668]
[1735127299530,0.605,707.72,705.9,1.05227668]
[1735127299731,0.26016042,707.71,705.9,1.05227668]
[1735127301126,0.26016042,707.7,705.91,1.05227668]
[1735127301328,0.26016042,707.69,705.91,1.05227668]
[1735127301524,0.26016042,707.68,705.91,1.05227668]
[1735127301728,0.605,707.72,705.91,1.05227668]
[1735127301729,0.26016042,707.67,705.91,1.05227668]
[1735127301929,0.26016042,707.66,705.91,1.05227668]
[1735127302129,0.26016042,707.65,705.91,1.05227668]
[1735127302329,0.26017998,707.64,705.94,1.05227668]
[1735127302530,0.26017998,707.63,705.94,1.05227668]
[1735127302829,0.26017998,707.62,705.94,1.05227668]
[1735127303024,0.26017998,707.61,705.94,1.05227668]
[1735127303227,0.26017998,707.6,705.94,1.05227668]
[1735127303530,0.26017998,707.59,705.93,1.05227668]
[1735127303729,0.26017998,707.58,705.93,1.05227668]
[1735127303929,0.26017998,707.57,705.93,1.05227668]
[1735127304124,0.26017998,707.56,705.93,1.05227668]
[1735127304329,0.26017998,707.55,705.93,1.05227668]
[1735127304628,0.26017998,707.54,705.89,1.05227668]
[1735127304924,0.26017998,707.53,705.89,1.05227668]
[1735127305127,0.26018793,707.53,705.89,1.05227668]
[1735127305327,0.26018793,707.52,705.89,1.05227668]
[1735127305528,0.26018793,707.51,705.89,1.05227668]
[1735127305726,0.26018793,707.5,705.89,1.05227668]
[1735127306032,0.26019508,707.49,705.89,1.05227668]
[1735127306329,0.26019508,707.48,705.89,1.05227668]
[1735127306531,0.26019508,707.47,705.89,1.05227668]
[1735127306731,0.26019508,707.46,705.89,1.05227668]
[1735127307027,0.26019508,707.45,705.89,1.05227668]
[1735127307331,0.26019508,707.44,705.89,1.05227668]
[1735127307527,0.26019508,707.43,705.89,1.05227668]
[1735127307729,0.26019508,707.42,705.72,1.05227668]
[1735127307928,0.26019508,707.41,705.72,1.05227668]
[1735127308129,0.26019508,707.4,705.72,1.05227668]
[1735127308323,0.26019508,707.39,705.72,1.05227668]
[1735127308522,0.26019508,707.38,705.67,1.05227668]
[1735127308728,0.26019508,707.37,705.67,1.05227668]
[1735127308924,0.26019508,707.36,705.67,1.05227668]
[1735127309124,0.26019508,707.35,705.67,1.05227668]
[1735127309323,0.26019508,707.34,705.67,1.05227668]
[1735127309522,0.26019508,707.33,705.67,1.05227668]
[1735127309727,1.30155294,707.56,705.69,1.05227668]
[1735127309924,0.26019508,707.55,705.69,1.05227668]
[1735127310127,0.26019508,707.54,705.69,1.05227668]
[1735127310330,1.04135786,707.56,705.69,1.05227668]
[1735127310531,0.26027034,707.55,705.71,1.05227668]
[1735127310725,1.04135786,707.66,705.71,1.05227668]
[1735127310726,0.26027034,707.54,705.71,1.05227668]
[1735127310928,0.26027034,707.53,705.71,1.05227668]
[1735127311124,1.04135786,707.66,705.71,1.05227668]
[1735127311426,0.26027993,707.65,705.71,1.05227668]
[1735127311628,1.04135786,707.66,705.71,1.05227668]
[1735127311629,0.26027993,707.64,705.71,1.05227668]
[1735127311831,1.04135786,707.66,705.71,1.05227668]
[1735127311832,0.26027993,707.63,705.71,1.05227668]
[1735127312131,0.26027993,707.63,705.07,2.14839823]
[1735127312132,1.04135786,707.6,705.6,1.05227668]
[1735127312331,0.26027993,707.59,705.6,1.05227668]
[1735127312535,0.26027993,707.58,705.6,1.05227668]
[1735127312727,0.26027993,707.57,705.6,1.05227668]
[1735127312933,0.26027993,707.56,705.6,1.05227668]
[1735127313231,0.26027993,707.55,705.6,1.05227668]
[1735127313427,0.26027993,707.54,705.62,1.05227668]
[1735127313732,0.26027993,707.53,705.62,1.05227668]
[1735127313933,0.26027993,707.52,705.62,1.05227668]
[1735127314126,0.26027993,707.51,705.62,1.05227668]
[1735127314330,0.26027993,707.51,704.96,2.14839823]
[1735127314331,0.26027993,707.5,705.57,1.05227668]
[1735127314526,0.26027993,707.49,705.57,1.05227668]
[1735127314829,0.26027993,707.48,705.57,1.05227668]
[1735127315029,0.26027993,707.47,705.57,1.05227668]
[1735127315229,0.26027993,707.46,705.57,1.05227668]
[1735127315427,0.26027993,707.45,705.57,1.05227668]
[1735127315628,0.26027993,707.44,705.63,1.05227668]
[1735127315830,0.26027993,707.43,705.63,1.05227668]
[1735127316131,0.26027993,707.42,705.63,1.05227668]
[1735127316332,0.26027993,707.41,705.63,1.05227668]
[1735127316532,0.26027993,707.4,705.64,1.05227668]
[1735127316730,0.26027993,707.39,705.64,1.05227668]
[1735127316932,0.26027993,707.38,705.64,1.05227668]
[1735127317134,0.26027993,707.37,705.64,1.05227668]
[1735127317434,0.26027993,707.36,705.62,1.05227668]
[1735127317735,0.26027993,707.35,705.62,1.05227668]
[1735127317935,0.26027993,707.34,705.62,1.05227668]
[1735127318128,0.26027993,707.33,705.62,1.05227668]
[1735127318332,0.26027993,707.32,705.62,1.05227668]
[1735127318634,0.26027836,707.31,705.6,1.05227668]
[1735127318829,0.26027836,707.41,705.6,1.05227668]
[1735127319135,0.26027836,707.4,705.6,1.05227668]
[1735127319429,0.26027836,707.41,705.6,1.05227668]
[1735127319633,0.26027836,707.4,705.6,1.05227668]
[1735127319833,0.26027836,707.39,705.6,1.05227668]
[1735127320032,0.26027836,707.41,705.6,1.05227668]
[1735127320231,0.26027836,707.4,705.6,1.05227668]
[1735127320534,0.26027836,707.39,705.6,1.05227668]
[1735127320735,0.26027836,707.38,705.7,1.05227668]
[1735127320934,0.26027836,707.37,705.7,1.05227668]
[1735127321134,0.26027836,707.41,705.7,1.05227668]
[1735127321334,0.26020946,707.4,705.7,1.05227668]
[1735127321535,0.26020946,707.41,705.7,1.05227668]
[1735127321836,0.26020946,707.4,705.76,1.05227668]
[1735127322136,0.26020946,707.39,705.76,1.05227668]
[1735127322335,0.26020946,707.38,705.76,1.05227668]
[1735127322529,0.26020946,707.37,705.76,1.05227668]
[1735127322733,0.26020946,707.36,705.73,1.05227668]
[1735127322929,0.26020946,707.35,705.73,1.05227668]
[1735127323130,0.26020946,707.34,705.73,1.05227668]
[1735127323330,0.26020946,707.33,705.73,1.05227668]
[1735127323529,0.26020946,707.32,705.73,1.05227668]
[1735127323734,0.26020946,707.31,705.73,1.05227668]
[1735127323935,0.26020946,707.3,705.68,1.05227668]
[1735127324234,0.26020946,707.29,705.68,1.05227668]
[1735127324535,0.26020946,707.28,705.68,1.05227668]
[1735127324835,0.26020946,707.27,705.7,1.05227668]
[1735127325030,0.26020946,707.26,705.7,1.05227668]
[1735127325229,0.26020946,707.25,705.7,1.05227668]
[1735127325433,0.26020946,707.24,705.7,1.05227668]
[1735127325629,0.26020946,707.23,705.7,1.05227668]
[1735127325835,0.91,707.42,705.72,1.05227668]
[1735127326033,0.2601987,707.41,705.72,1.05227668]
[1735127326633,0.91,707.42,705.72,1.05227668]
[1735127326833,0.26019958,707.41,705.75,1.05227668]
[1735127328936,0.26019958,707.41,705.73,1.05227668]
[1735127329940,0.26019958,707.41,705.77,1.05227668]
[1735127330644,0.26019958,707.41,705.72,1.05227668]
[1735127331735,0.26019958,707.4,705.71,1.05227668]
[1735127331941,0.26019958,707.39,705.71,1.05227668]
[1735127332136,0.26019958,707.38,705.71,1.05227668]
[1735127332342,0.26019958,707.37,705.71,1.05227668]
[1735127332544,0.26019958,707.36,705.71,1.05227668]
[1735127332945,0.26019958,707.36,705.7,1.05227668]
[1735127333842,0.26019958,707.35,705.7,1.05227668]
[1735127334043,0.26019958,707.34,705.7,1.05227668]
[1735127334243,0.26019958,707.33,705.7,1.05227668]
[1735127334445,0.26019958,707.32,705.8,1.05227668]
[1735127334641,0.26019958,707.31,705.8,1.05227668]
[1735127334842,0.26031827,707.3,705.8,1.05227668]
[1735127335039,0.26031827,707.29,705.8,1.05227668]
[1735127335244,0.26031827,707.28,705.8,1.05227668]
[1735127335445,0.26031827,707.27,705.8,1.05227668]
[1735127335752,0.26034802,707.26,705.8,1.05227668]
[1735127335949,0.26034802,707.25,705.49,1.33107358]
[1735127336144,0.26034802,707.24,705.49,1.33107358]
[1735127336343,0.26034802,707.23,705.49,1.33107358]
[1735127336540,0.26034802,707.22,705.49,1.33107358]
[1735127336745,0.26034802,707.21,705.49,1.33107358]
[1735127336947,0.26034802,707.2,705.5,1.05227668]
[1735127337142,0.26034802,707.19,705.5,1.05227668]
[1735127337342,0.26034802,707.18,705.5,1.05227668]
[1735127337647,0.26034802,707.35,705.5,1.05227668]
[1735127337846,0.26034802,707.34,705.5,1.05227668]
[1735127338046,0.26034802,707.33,705.5,1.05227668]
[1735127338246,0.26034802,707.32,705.5,1.05227668]
[1735127338448,0.26034802,707.31,705.5,1.05227668]
[1735127338749,1.04135786,707.27,705.56,1.05227668]
[1735127338944,0.26034802,707.26,705.56,1.05227668]
[1735127339246,1.04135786,707.27,705.56,1.05227668]
[1735127339247,0.26034802,707.25,705.56,1.05227668]
[1735127339446,0.26034802,707.25,705.49,0.2787969]
[1735127339447,0.26034802,707.24,705.55,1.05227668]
[1735127339647,0.26034802,707.23,705.55,1.05227668]
[1735127339847,0.26034802,707.22,705.55,1.05227668]
[1735127340047,0.26034802,707.21,705.55,1.05227668]
[1735127340251,0.26034802,707.2,705.55,1.05227668]
[1735127340443,1.04135786,707.29,705.55,1.05227668]
[1735127340444,0.26034802,707.28,705.55,1.05227668]
[1735127340645,0.26034802,707.27,705.49,0.2787969]
[1735127340849,0.26034802,707.26,705.49,0.2787969]
[1735127341049,0.26034802,707.25,705.49,0.2787969]
[1735127341249,0.26034802,707.24,705.49,0.2787969]
[1735127341443,0.26034802,707.23,705.49,0.2787969]
[1735127341644,0.26034802,707.22,705.49,0.2787969]
[1735127341845,0.26034802,707.21,705.49,0.2787969]
[1735127342150,0.26034802,707.2,705.53,1.05227668]
[1735127342350,0.26034802,707.36,705.53,1.05227668]
[1735127342552,0.26034802,707.35,705.53,1.05227668]
[1735127342849,0.26034802,707.34,705.53,1.05227668]
[1735127343050,0.26034802,707.36,705.53,1.05227668]
[1735127343251,0.26034802,707.35,705.57,1.05227668]
[1735127343545,0.26034802,707.34,705.57,1.05227668]
[1735127343751,0.625,707.37,705.57,1.05227668]
[1735127343752,0.26034802,707.33,705.57,1.05227668]
[1735127343946,0.625,707.37,705.55,1.05227668]
[1735127343947,0.26034802,707.32,705.55,1.05227668]
[1735127344250,0.26034802,707.31,705.55,1.05227668]
[1735127344453,0.26034802,707.3,705.55,1.05227668]
[1735127344644,0.26034802,707.29,705.55,1.05227668]
[1735127344850,0.26034802,707.28,705.55,1.05227668]
[1735127345144,0.26030184,707.27,705.55,1.05227668]
[1735127345349,0.26030184,707.26,705.55,1.05227668]
[1735127345546,0.26030184,707.25,705.55,1.05227668]
[1735127345847,0.26030184,707.24,705.55,1.05227668]
[1735127346053,0.26030184,707.23,705.55,1.05227668]
[1735127346250,0.26030184,707.22,705.55,1.05227668]
[1735127346448,0.26030184,707.21,705.55,1.05227668]
[1735127346645,0.91451986,707.75,705.49,0.2787969]
[1735127346646,0.26030184,707.2,705.49,0.2787969]
[1735127346845,0.26030184,707.19,705.49,0.2787969]
[1735127349053,0.26030184,707.19,705.52,1.05227668]
[1735127349950,0.26030184,707.19,705.51,1.05227668]
[1735127350453,0.26031956,707.18,705.51,1.05227668]
[1735127350653,0.26031956,707.17,705.51,1.05227668]
[1735127350854,0.26031956,707.16,705.5,1.05227668]
[1735127351054,0.26031956,707.15,705.5,1.05227668]
[1735127351255,0.924,707.2,705.5,1.05227668]
[1735127351256,0.26031956,707.14,705.5,1.05227668]
[1735127351554,0.26031956,707.13,705.5,1.05227668]
[1735127351754,0.26031956,707.12,705.5,1.05227668]
[1735127351956,0.26031956,707.11,705.5,1.05227668]
[1735127352255,0.26031956,707.1,705.56,1.05227668]
[1735127352449,0.26031956,707.09,705.56,1.05227668]
[1735127352651,0.26031956,707.08,705.56,1.05227668]
[1735127352854,0.26031956,707.07,705.56,1.05227668]
[1735127353057,0.26031956,707.06,705.57,1.05227668]
[1735127353349,0.26031637,707.05,705.57,1.05227668]
[1735127353654,0.26031637,707.04,705.57,1.05227668]
[1735127353854,0.26031637,707.03,705.54,1.05227668]
[1735127354048,0.26031637,707.02,705.54,1.05227668]
[1735127354252,0.26031637,707.01,705.54,1.05227668]
[1735127354452,0.26031637,707.0,705.54,1.05227668]
[1735127354654,0.26031637,706.99,705.54,1.05227668]
[1735127354957,0.26031637,706.98,705.53,1.05227668]
[1735127355157,0.26031637,706.97,705.53,1.05227668]
[1735127355351,0.26031637,706.96,705.53,1.05227668]
[1735127355554,0.26031637,706.95,705.53,1.05227668]
[1735127355754,0.26031637,706.94,705.53,1.05227668]
[1735127355950,0.924,707.2,705.53,1.05227668]
[1735127356154,0.26030098,707.19,705.51,1.05227668]
[1735127356955,0.26030098,707.19,705.58,1.05227668]
[1735127358159,0.26030098,707.19,705.49,0.2787969]
[1735127358160,0.26030098,707.19,705.55,1.05227668]
[1735127359060,0.26030098,707.18,705.58,1.05227668]
[1735127359264,0.26030098,707.17,705.58,1.05227668]
[1735127359565,0.26030098,707.16,705.58,1.05227668]
[1735127359762,0.26030098,707.15,705.58,1.05227668]
[1735127359963,0.26030098,707.14,705.58,1.05227668]
[1735127360164,0.26030098,707.14,705.51,1.05227668]
[1735127361166,0.26030098,707.14,705.49,0.2787969]
[1735127361366,0.26030098,707.13,705.49,0.2787969]
[1735127361562,0.26030098,707.12,705.49,0.2787969]
[1735127361768,0.26030098,707.11,705.49,0.2787969]
[1735127361965,0.26030098,707.1,705.59,1.05227668]
[1735127362165,0.26030098,707.09,705.59,1.05227668]
[1735127362359,0.26030098,707.08,705.59,1.05227668]
[1735127362562,0.26030098,707.07,705.59,1.05227668]
[1735127362764,0.26030098,707.06,705.59,1.05227668]
[1735127362961,0.26030098,707.05,705.59,1.05227668]
[1735127363160,0.26030098,707.04,705.59,1.05227668]
[1735127363365,0.26030098,707.03,705.59,1.05227668]
[1735127363565,0.26030098,707.02,705.59,1.05227668]
[1735127363763,0.26030098,707.01,705.61,1.05227668]
[1735127364070,0.26030098,707.0,705.61,1.05227668]
[1735127364368,0.26030098,706.99,705.61,1.05227668]
[1735127364568,0.26030098,706.98,705.61,1.05227668]
[1735127364765,0.26030098,706.97,705.57,1.05227668]
[1735127364964,0.26030098,706.96,705.57,1.05227668]
[1735127365165,0.26030098,706.95,705.57,1.05227668]
[1735127365369,0.26030098,706.94,705.57,1.05227668]
[1735127365572,0.26030098,706.93,705.57,1.05227668]
[1735127365864,0.26030098,706.92,705.6,1.05227668]
[1735127366069,0.26030098,706.91,705.6,1.05227668]
[1735127366269,0.26030098,706.9,705.6,1.05227668]
[1735127366469,0.26030098,706.89,705.6,1.05227668]
[1735127366769,0.589,707.15,705.6,1.05227668]
[1735127366969,0.589,707.15,705.49,0.2787969]
[1735127366970,0.26032885,707.14,705.62,1.05227668]
[1735127368970,0.26032885,707.14,705.67,1.05227668]
[1735127369571,0.589,707.15,705.67,1.05227668]
[1735127369774,0.26032475,707.14,705.67,1.05227668]
[1735127370073,0.589,707.15,705.71,1.05227668]